bitfinex/quotes_SOLUSD_20260109
["timestamp","ask_amount","ask_price","bid_price","bid_amount"]
[1767924759636,0.69779513,139.22,139.17,0.69069276]
[1767924759824,0.69779513,139.22,139.18,0.69069276]
[1767924760208,2.22027955,139.23,139.18,0.69069276]
[1767924760410,2.22027955,139.22,139.18,7.87534908]
[1767924760615,2.91807468,139.22,139.18,0.69069276]
[1767924760829,2.22027955,139.21,139.18,0.69069276]
[1767924761222,2.91807468,139.22,139.18,0.69069276]
[1767924761614,2.22027955,139.21,139.18,0.69069276]
[1767924761816,2.22027955,139.19,139.16,0.89069276]
[1767924762115,2.91807468,139.2,139.17,7.18541042]
[1767924762313,0.69779513,139.2,139.17,7.18541042]
[1767924762821,0.66779508,139.2,139.17,7.18541042]
[1767924763026,2.88807463,139.2,139.16,8.07662891]
[1767924764421,2.88807463,139.2,139.16,0.89069276]
[1767924764941,2.88807463,139.2,139.16,8.07661042]
[1767924765152,2.22027955,139.21,139.17,0.69069276]
[1767924765942,2.91807468,139.23,139.18,0.69069276]
[1767924766621,2.22027955,139.22,139.18,7.87555239]
[1767924767536,0.69779513,139.23,139.18,7.87555239]
[1767924767753,2.22027955,139.22,139.18,7.87555239]
[1767924768124,0.69779513,139.22,139.18,7.87555239]
[1767924769854,2.91807468,139.22,139.18,7.87555239]
[1767924770248,2.22027955,139.22,139.18,7.87555239]
[1767924770450,2.91807468,139.22,139.18,7.87555239]
[1767924771331,2.22027955,139.23,139.18,9.40513918]
[1767924771536,2.91807468,139.23,139.19,0.69069276]
[1767924771737,0.69779513,139.21,139.17,23.21624751]
[1767924771931,2.91807468,139.22,139.18,0.69069276]
[1767924774755,2.91807468,139.22,139.17,20.3052752]
[1767924774756,0.69779513,139.21,139.17,20.99596796]
[1767924776946,0.69779513,139.21,139.17,13.81069276]
[1767924777140,0.69779513,139.21,139.17,20.99613822]
[1767924778056,2.91807468,139.21,139.17,20.99613822]
[1767924778235,0.69779513,139.2,139.17,2.22027955]
[1767924778558,0.69779513,139.23,139.19,0.69069276]
[1767924778743,2.91807468,139.23,139.19,0.69069276]
[1767924778933,2.91807468,139.23,139.18,16.03097231]
[1767924778934,0.69779513,139.22,139.18,16.03097231]
[1767924779856,0.69779513,139.22,139.18,23.21586593]
[1767924780158,0.69779513,139.22,139.18,20.99558638]
[1767924780360,2.91807468,139.22,139.18,20.99558638]
[1767924781153,0.69779513,139.22,139.18,20.99558638]
[1767924781559,2.22027955,139.23,139.19,0.69069276]
[1767924781859,0.69779513,139.29,139.23,0.69069276]
[1767924782040,0.69779513,139.29,139.24,16.03097231]
[1767924782559,0.69779513,139.29,139.25,2.22027955]
[1767924782873,0.66579857,139.27,139.2,0.71666177]
[1767924783040,0.6670012,139.26,139.21,2.93694132]
[1767924783366,0.6670012,139.26,139.21,13.83666177]
[1767924783738,0.6670012,139.26,139.21,16.05694132]
[1767924783956,0.6670012,139.26,139.22,7.89953749]
[1767924786159,10.06829402,139.26,139.22,0.71666177]
[1767924786349,2.22027955,139.25,139.22,0.71666177]
[1767924786861,7.82895972,139.28,139.23,0.69512816]
[1767924787043,2.93429018,139.27,139.22,0.69512816]
[1767924787365,7.17986364,139.28,139.22,0.69512816]
[1767924787366,0.64974522,139.26,139.22,0.69512816]
[1767924787543,2.87002477,139.26,139.22,0.69512816]
[1767924788062,2.87002477,139.26,139.22,7.87772308]
[1767924788749,0.64974522,139.26,139.22,7.87772308]
[1767924789864,0.64974522,139.26,139.23,0.69512816]
[1767924790247,0.64974522,139.26,139.22,7.18259492]
[1767924790248,2.87002477,139.26,139.21,13.81512816]
[1767924790557,0.71336798,139.25,139.21,13.81512816]
[1767924790765,2.93364753,139.25,139.21,20.99843787]
[1767924792764,0.71336798,139.25,139.22,0.69512816]
[1767924792968,2.22027955,139.26,139.22,0.69512816]
[1767924793264,0.64909608,139.26,139.22,0.69512816]
[1767924794265,2.86937563,139.26,139.22,0.69512816]
[1767924794661,0.64909608,139.26,139.22,0.69512816]
[1767924794860,2.86937563,139.26,139.22,0.69512816]
[1767924797467,10.05042105,139.26,139.22,0.69512816]
[1767924797650,0.71401063,139.25,139.22,0.69512816]
[1767924800248,2.93429018,139.25,139.21,20.30330971]
[1767924800448,0.71401063,139.25,139.21,20.99843787]
[1767924805579,2.93429018,139.25,139.21,20.99843787]
[1767924806476,2.86937563,139.24,139.19,0.69512816]
[1767924807163,2.22027955,139.23,139.19,0.69512816]
[1767924807678,2.22027955,139.25,139.21,0.69512816]
[1767924807880,0.71336798,139.23,139.2,0.69512816]
[1767924808377,2.93364753,139.23,139.2,0.69512816]
[1767924810068,2.93364753,139.23,139.19,7.87950067]
[1767924810291,2.93364753,139.23,139.2,0.69512816]
[1767924810789,4.18453297,139.23,139.2,0.69512816]
[1767924811287,0.71466633,139.24,139.2,7.87885439]
[1767924811469,3.47116499,139.23,139.2,7.87885439]
[1767924811769,4.18583132,139.24,139.2,7.87885439]
[1767924812276,4.18583132,139.24,139.2,0.69512816]
[1767924812277,4.12026107,139.23,139.2,0.69512816]
[1767924815169,4.14825012,139.24,139.21,0.7081604]
[1767924815371,0.67708513,139.24,139.21,0.7081604]
[1767924815570,4.14825012,139.24,139.21,0.7081604]
[1767924816883,0.67708513,139.24,139.21,0.7081604]
[1767924817182,4.14825012,139.24,139.21,0.7081604]
[1767924817584,0.67708513,139.24,139.21,7.89149377]
[1767924817781,4.14825012,139.27,139.22,0.7081604]
[1767924818778,4.14825012,139.27,139.23,7.18236012]
[1767924818990,4.14825012,139.27,139.23,7.89052052]
[1767924819866,0.67708513,139.27,139.23,7.89052052]
[1767924820181,4.14825012,139.27,139.23,7.89052052]
[1767924820387,4.14825012,139.26,139.23,7.89052052]
[1767924821696,0.67708513,139.25,139.22,7.89103642]
[1767924822173,4.14825012,139.26,139.22,7.89103642]
[1767924823090,4.14825012,139.26,139.23,0.7081604]
[1767924824687,0.67708513,139.25,139.21,0.7081604]
[1767924825263,0.67708513,139.27,139.22,0.7081604]
[1767924825468,0.67708513,139.26,139.22,0.7081604]
[1767924826591,0.67708513,139.26,139.21,11.36220835]
[1767924828472,0.67708513,139.25,139.21,11.36220835]
[1767924828693,0.67708513,139.25,139.21,7.89104336]
[1767924829174,4.14825012,139.26,139.22,0.7081604]
[1767924830189,0.67708513,139.25,139.21,7.89104336]
[1767924830379,0.67708513,139.23,139.2,7.89199782]
[1767924830576,3.47116499,139.24,139.2,7.89199782]
[1767924830781,3.47116499,139.23,139.2,0.7081604]
[1767924830974,3.47116499,139.23,139.19,83.09243238]
[1767924832474,4.14825012,139.23,139.19,83.09243238]
[1767924833195,4.12776646,139.22,139.19,13.1]
[1767924833383,0.67688029,139.21,139.18,0.7081604]
[1767924833779,0.64688028,139.21,139.18,0.7081604]
[1767924834297,0.61688028,139.21,139.18,0.7081604]
[1767924836896,0.61688028,139.21,139.17,7.18507032]
[1767924837092,0.61688028,139.21,139.17,7.89323072]
[1767924837703,4.08804527,139.21,139.17,7.89323072]
[1767924837998,0.61688028,139.21,139.17,7.89323072]
[1767924838189,0.65680426,139.2,139.16,21.19394492]
[1767924839605,3.47116499,139.21,139.17,0.7081604]
[1767924839803,4.14825012,139.22,139.17,0.7081604]
[1767924840402,0.59720146,139.21,139.17,0.7081604]
[1767924840599,0.67628629,139.2,139.17,0.7081604]
[1767924840805,3.47116499,139.21,139.17,0.7081604]
[1767924841605,3.47116499,139.21,139.17,7.89360913]
[1767924842285,3.47116499,139.21,139.18,0.7081604]
[1767924842494,3.47116499,139.21,139.17,7.89360913]
[1767924842703,4.1735181,139.21,139.17,7.89360913]
[1767924843606,4.1735181,139.21,139.17,0.7081604]
[1767924844509,0.54248616,139.2,139.16,21.20773481]
[1767924844697,0.54248616,139.2,139.17,0.72187683]
[1767924845104,0.54248616,139.2,139.17,4.19304182]
[1767924845906,0.54248616,139.2,139.17,0.72187683]
[1767924846100,0.54248616,139.2,139.17,4.19304182]
[1767924846605,0.51248616,139.2,139.17,4.19304182]
[1767924846792,0.51248616,139.2,139.17,11.378466]
[1767924846993,31.07227406,139.26,139.19,0.72187683]
[1767924847196,3.47116499,139.25,139.2,0.72187683]
[1767924847391,3.47116499,139.25,139.2,4.19304182]
[1767924847906,10.65249353,139.25,139.2,4.19304182]
[1767924848699,0.70235311,139.24,139.2,4.19304182]
[1767924849301,0.70235311,139.25,139.22,0.72187683]
[1767924851514,4.1735181,139.25,139.21,0.72187683]
[1767924852415,0.70235311,139.25,139.21,0.72187683]
[1767924854612,0.51278616,139.24,139.2,7.1837321]
[1767924855117,0.51278616,139.24,139.2,7.88010622]
[1767924855616,0.51278616,139.24,139.2,11.35127121]
[1767924858922,0.51278616,139.24,139.21,0.69637412]
[1767924859624,0.51278616,139.24,139.21,7.87972495]
[1767924861120,0.53302177,139.26,139.22,0.69637412]
[1767924861309,4.00418676,139.26,139.22,0.69637412]
[1767924861626,0.68042418,139.25,139.22,0.69637412]
[1767924862621,0.68042418,139.25,139.21,11.35088994]
[1767924865520,0.68042418,139.25,139.22,0.69637412]
[1767924865931,7.86180685,139.25,139.21,0.69637412]
[1767924867108,0.5344958,139.24,139.21,0.69637412]
[1767924867306,0.53302177,139.26,139.23,4.16753911]
[1767924867606,0.53302177,139.26,139.22,4.16753911]
[1767924869516,0.53302177,139.26,139.22,3.47116499]
[1767924870431,0.53302177,139.26,139.21,7.87951931]
[1767924870732,0.53302177,139.26,139.22,3.47116499]
[1767924871533,0.53302177,139.26,139.21,7.87951931]
[1767924871738,0.53302177,139.26,139.21,11.3506843]
[1767924872538,0.53302177,139.26,139.21,10.10029685]
[1767924873833,0.53302177,139.26,139.21,0.69637412]
[1767924873834,0.66452283,139.25,139.21,0.69637412]
[1767924874836,0.66452283,139.25,139.21,2.91715166]
[1767924875540,0.66452283,139.25,139.21,2.22077754]
[1767924876225,0.66452283,139.25,139.2,10.07282206]
[1767924876432,0.66452283,139.25,139.21,2.22077754]
[1767924877721,0.66452283,139.25,139.21,2.88904168]
[1767924878738,0.55023813,139.23,139.18,0.66826414]
[1767924879034,0.55023813,139.23,139.2,2.22077754]
[1767924881638,0.55023813,139.23,139.2,2.88904168]
[1767924881948,0.55023813,139.23,139.2,0.66826414]
[1767924882238,0.55023813,139.23,139.2,2.88904168]
[1767924883838,0.66337999,139.22,139.19,0.66826414]
[1767924886448,0.55136955,139.21,139.18,16.00904168]
[1767924886938,0.66452283,139.22,139.19,2.88904168]
[1767924888652,0.66452283,139.22,139.19,2.22077754]
[1767924889661,0.66452283,139.22,139.19,2.88904168]
[1767924890462,0.66452283,139.22,139.19,0.66826414]
[1767924890663,7.8474718,139.22,139.18,16.00904168]
[1767924890843,0.55023813,139.21,139.18,15.34077754]
[1767924891252,0.55023813,139.21,139.18,13.12]
[1767924892662,0.55023813,139.21,139.18,15.34077754]
[1767924895670,0.55023813,139.21,139.18,16.00904168]
[1767924895846,7.8474718,139.22,139.18,16.00904168]
[1767924897459,7.8474718,139.22,139.18,2.88904168]
[1767924899161,7.8474718,139.22,139.19,0.66826414]
[1767924901373,0.55023813,139.21,139.17,2.88904168]
[1767924901550,0.55023813,139.21,139.18,0.66826414]
[1767924901756,7.84706473,139.23,139.19,2.88904168]
[1767924901964,0.55023813,139.22,139.19,2.88904168]
[1767924902991,0.55023813,139.22,139.19,0.66826414]
[1767924906985,0.55023813,139.22,139.18,0.70703011]
[1767924909557,5.36835757,139.22,139.18,2.92780765]
[1767924910878,5.33453059,139.22,139.19,0.70703011]
[1767924911065,0.51641115,139.22,139.19,0.70703011]
[1767924911266,0.6968687,139.21,139.18,9.40549726]
[1767924911469,5.51528725,139.22,139.19,0.70703011]
[1767924911661,4.81659575,139.22,139.19,0.70703011]
[1767924912178,4.81659575,139.22,139.2,0.70703011]
[1767924912369,0.6986915,139.23,139.2,0.70703011]
[1767924912775,5.51284951,139.23,139.2,0.70703011]
[1767924913874,0.52774272,139.22,139.19,9.40482816]
[1767924914081,0.68887288,139.23,139.2,0.7132641]
[1767924914380,5.50881119,139.24,139.21,0.7132641]
[1767924914573,0.68887288,139.24,139.21,2.87404166]
[1767924914760,5.51088693,139.26,139.21,2.22077754]
[1767924915277,5.51088693,139.26,139.24,2.22077754]
[1767924915278,4.82201405,139.26,139.24,2.22077754]
[1767924915471,0.68783947,139.27,139.24,2.22077754]
[1767924915854,0.58655464,139.26,139.23,2.22077754]
[1767924917353,0.58655464,139.26,139.24,2.22077754]
[1767924917753,5.51186672,139.27,139.23,7.89556391]
[1767924917964,0.58553156,139.26,139.24,2.22077754]
[1767924919379,0.58553156,139.26,139.22,7.89603864]
[1767924919567,0.58553156,139.26,139.23,2.22077754]
[1767924920185,4.82299384,139.27,139.23,2.93404164]
[1767924920390,5.4085254,139.27,139.24,0.7132641]
[1767924922881,4.82299384,139.27,139.24,0.7132641]
[1767924923082,4.82299384,139.26,139.24,0.7132641]
[1767924923381,0.58553156,139.27,139.24,0.7132641]
[1767924923567,4.81907403,139.27,139.24,0.7132641]
[1767924924291,103.78887288,139.31,139.27,0.7132641]
[1767924924471,106.00965042,139.31,139.27,0.6532641]
[1767924924678,0.64493156,139.3,139.24,7.18173763]
[1767924924879,0.64493156,139.3,139.25,2.22077754]
[1767924925473,0.64493156,139.3,139.26,2.22077754]
[1767924925682,103.78887288,139.31,139.26,2.22077754]
[1767924925892,103.78887288,139.31,139.27,2.22077754]
[1767924926184,0.68887288,139.31,139.27,2.22077754]
[1767924926797,0.68887288,139.31,139.24,13.12]
[1767924926798,0.68887288,139.33,139.29,0.7132641]
[1767924926999,0.68887288,139.33,139.3,0.7132641]
[1767924927194,0.68887288,139.33,139.28,9.40037352]
[1767924927385,0.68887288,139.32,139.28,7.17959598]
[1767924928308,2.22077754,139.33,139.28,7.17959598]
[1767924928480,0.68887288,139.33,139.28,9.40037352]
[1767924929180,0.68887288,139.33,139.29,0.7132641]
[1767924930080,2.90965042,139.33,139.29,0.7132641]
[1767924930994,2.90965042,139.33,139.28,9.40037352]
[1767924930995,0.68887288,139.33,139.3,7.89201499]
[1767924931191,2.90965042,139.34,139.31,0.7132641]
[1767924932277,0.68887288,139.34,139.31,0.7132641]
[1767924932482,2.90965042,139.34,139.31,0.7132641]
[1767924933010,0.68887288,139.34,139.31,0.7132641]
[1767924933610,0.68887288,139.34,139.3,7.89338515]
[1767924934100,2.90965042,139.34,139.3,7.89338515]
[1767924934607,4.15490559,139.34,139.3,7.89338515]
[1767924936208,4.15490559,139.34,139.3,0.71463426]
[1767924936808,0.69546475,139.33,139.3,0.71463426]
[1767924936986,0.69546475,139.33,139.29,0.71463426]
[1767924937700,0.69546475,139.33,139.3,0.71463426]
[1767924941010,10.64301908,139.34,139.31,0.71463426]
[1767924941011,0.69546475,139.34,139.31,0.71463426]
[1767924941217,0.69546475,139.34,139.31,0.67418944]
[1767924941513,0.69546475,139.34,139.29,10.64511367]
[1767924943119,0.69546475,139.34,139.3,0.71463426]
[1767924943812,0.69546475,139.33,139.29,0.71463426]
[1767924944601,0.69546475,139.3,139.27,0.71463426]
[1767924944796,0.69546475,139.29,139.24,20.99630398]
[1767924945019,4.16149746,139.26,139.23,0.71463426]
[1767924945217,0.69546475,139.25,139.22,0.71463426]
[1767924945416,4.16149746,139.26,139.22,0.71463426]
[1767924946101,4.16149746,139.25,139.21,0.71463426]
[1767924950026,7.18084836,139.26,139.21,0.71463426]
[1767924950027,11.34234582,139.26,139.22,0.71463426]
[1767924951426,0.69546475,139.28,139.24,0.71463426]
[1767924951724,4.16149746,139.28,139.24,0.71463426]
[1767924951911,0.69546475,139.27,139.24,0.71463426]
[1767924953425,0.69546475,139.27,139.22,4.18066697]
[1767924953426,0.69546475,139.26,139.22,4.18066697]
[1767924953637,0.69546475,139.26,139.22,11.36353878]
[1767924954009,0.69546475,139.26,139.23,0.71463426]
[1767924955932,0.69546475,139.27,139.23,0.71463426]
[1767924956144,7.87539721,139.28,139.24,0.71463426]
[1767924956316,0.69546475,139.28,139.24,0.71463426]
[1767924956522,0.69546475,139.31,139.27,0.71463426]
[1767924956737,4.16149746,139.31,139.27,0.71463426]
[1767924957632,0.69546475,139.3,139.27,0.71463426]
[1767924960322,11.34031763,139.3,139.27,0.71463426]
[1767924961228,0.69546475,139.28,139.24,13.81463426]
[1767924961606,0.69546475,139.28,139.24,0.71463426]
[1767924961828,7.87532737,139.28,139.24,0.71463426]
[1767924963532,17.94477614,139.32,139.25,0.71885261]
[1767924963740,0.69690976,139.31,139.27,0.71885261]
[1767924964935,7.87514534,139.31,139.27,0.71885261]
[1767924965636,0.69690976,139.3,139.27,0.71885261]
[1767924965944,7.87514534,139.31,139.28,0.71885261]
[1767924966125,0.69690976,139.3,139.27,0.71885261]
[1767924966323,0.69690976,139.29,139.24,11.36657629]
[1767924966534,0.69690976,139.29,139.25,0.71885261]
[1767924966734,0.69690976,139.29,139.25,4.18488532]
[1767924967442,0.69690976,139.29,139.25,11.36611026]
[1767924967618,0.69690976,139.29,139.25,4.18488532]
[1767924968145,0.69690976,139.29,139.25,11.36617546]
[1767924968439,0.69690976,139.33,139.29,0.71885261]
[1767924968636,4.16294247,139.33,139.29,0.71885261]
[1767924969542,7.87438618,139.33,139.29,0.71885261]
[1767924970047,11.34041889,139.33,139.29,0.71885261]
[1767924970733,0.69690976,139.33,139.29,0.71885261]
[1767924971825,0.69690976,139.33,139.28,10.64580374]
[1767924972549,0.69690976,139.33,139.29,0.67806068]
[1767924972759,0.66566573,139.33,139.29,0.67806068]
[1767924973041,0.66566573,139.34,139.3,0.67806068]
[1767924973423,7.84238149,139.34,139.3,0.67806068]
[1767924975218,0.66566573,139.34,139.3,0.67806068]
[1767924975822,0.66566573,139.35,139.31,0.67806068]
[1767924976027,0.1,139.36,139.35,0.67806068]
[1767924976247,0.1,139.36,139.33,3.46603271]
[1767924978241,0.1,139.36,139.33,4.14409339]
[1767924980146,0.76566573,139.36,139.33,0.67806068]
[1767924980347,0.1,139.36,139.33,0.67806068]
[1767924981130,0.66566573,139.34,139.3,0.67806068]
[1767924981442,3.46603271,139.34,139.28,7.17971717]
[1767924981665,3.46603271,139.34,139.28,10.64574988]
[1767924982145,0.1,139.36,139.28,7.17971717]
[1767924982146,10.64325417,139.33,139.28,7.17971717]
[1767924982334,10.64325417,139.33,139.28,10.64574988]
[1767924982656,3.46603271,139.32,139.27,11.32429868]
[1767924982825,10.64325417,139.33,139.27,11.32429868]
[1767924983256,0.19429842,139.32,139.28,4.14409339]
[1767924984060,10.64325417,139.33,139.29,0.67806068]
[1767924984225,3.66033113,139.33,139.29,0.67806068]
[1767924985459,10.83780017,139.33,139.29,0.67806068]
[1767924985627,7.37176746,139.33,139.29,0.67806068]
[1767924986659,3.46603271,139.35,139.31,0.67806068]
[1767924986948,13.1,139.35,139.32,0.67806068]
[1767924987148,13.1,139.35,139.32,0.61806069]
[1767924988144,20.27628099,139.35,139.32,0.61806069]
[1767924988378,3.71973112,139.34,139.29,10.64519193]
[1767924988746,24.40797943,139.35,139.29,10.64519193]
[1767924989269,24.40797943,139.35,139.3,0.67806068]
[1767924989957,20.94194672,139.35,139.3,0.67806068]
[1767924990268,24.40797943,139.35,139.31,0.67806068]
[1767924990659,0.1,139.36,139.32,0.67806068]
[1767924990847,0.1,139.36,139.33,4.14409339]
[1767924992263,0.1,139.36,139.33,0.67806068]
[1767924992650,0.1,139.36,139.33,4.14409339]
[1767924993492,0.1,139.36,139.33,0.67806068]
[1767924996353,0.1,139.36,139.33,4.14409339]
[1767924996554,0.1,139.36,139.33,2.89517501]
[1767924999581,0.1,139.36,139.33,0.67806068]
[1767925002476,0.65750837,139.35,139.32,0.68108979]
[1767925002777,0.65750837,139.35,139.3,2.89820412]
[1767925002778,0.2617742,139.34,139.3,2.89820412]
[1767925003488,0.64967244,139.31,139.27,0.68108979]
[1767925003700,2.87856735,139.32,139.28,0.68108979]
[1767925004487,2.87856735,139.33,139.29,0.68108979]
[1767925004679,2.21711433,139.34,139.3,0.68108979]
[1767925004984,0.65741718,139.33,139.29,2.89820412]
[1767925005174,0.65741718,139.33,139.29,0.68108979]
[1767925005793,2.87453151,139.33,139.29,0.68108979]
[1767925006584,2.47897881,139.32,139.28,0.68108979]
[1767925006976,2.48289478,139.3,139.26,0.68108979]
[1767925007379,0.26578045,139.3,139.26,0.68108979]
[1767925007577,2.48289478,139.3,139.26,0.68108979]
[1767925008086,2.48289478,139.3,139.25,2.21711433]
[1767925008087,0.2696185,139.28,139.23,2.89820412]
[1767925008285,0.64578517,139.27,139.23,2.89820412]
[1767925008697,0.64578517,139.27,139.24,2.21711433]
[1767925008868,0.64578517,139.27,139.24,2.89820412]
[1767925009063,7.17956087,139.29,139.25,2.89820412]
[1767925009889,7.84101389,139.29,139.25,2.89820412]
[1767925010071,7.43780625,139.28,139.23,10.08042339]
[1767925010568,7.43780625,139.28,139.24,0.68108979]
[1767925011093,7.43780625,139.28,139.24,2.89820412]
[1767925012073,9.65492058,139.28,139.24,0.68108979]
[1767925012594,0.26186448,139.29,139.25,0.68108979]
[1767925012768,2.47897881,139.29,139.25,0.68108979]
[1767925013174,0.65346165,139.28,139.24,2.89820412]
[1767925013581,0.65346165,139.28,139.24,0.68108979]
[1767925013780,0.65346165,139.28,139.24,2.89820412]
[1767925014795,0.64958484,139.26,139.21,0.68108979]
[1767925014994,2.21711433,139.26,139.22,0.68108979]
[1767925015297,2.87856735,139.27,139.23,0.68108979]
[1767925015671,7.84166267,139.28,139.24,0.68108979]
[1767925015992,31.04692803,139.3,139.24,0.68108979]
[1767925015993,2.87856735,139.29,139.25,0.68108979]
[1767925016799,10.05802777,139.29,139.25,0.68108979]
[1767925017499,7.17876553,139.3,139.27,0.68108979]
[1767925018183,9.39587986,139.3,139.27,0.68108979]
[1767925018386,2.21711433,139.3,139.27,0.68108979]
[1767925018778,10.05694285,139.31,139.27,0.68108979]
[1767925021497,17.94473078,139.32,139.28,0.68108979]
[1767925021498,9.39495704,139.32,139.28,0.68108979]
[1767925021705,18.70091006,139.36,139.29,0.62108981]
[1767925021878,7.49344407,139.35,139.3,2.21711433]
[1767925022080,9.49282145,139.36,139.31,2.21711433]
[1767925022486,9.81009043,139.36,139.31,2.21711433]
[1767925022797,7.27570712,139.36,139.32,2.21711433]
[1767925023395,2.92682286,139.35,139.3,2.21711433]
[1767925023613,2.92682286,139.35,139.3,0.65531337]
[1767925024411,2.21711433,139.34,139.3,0.65531337]
[1767925024585,2.92242074,139.33,139.29,0.65531337]
[1767925025220,2.92242074,139.33,139.28,2.21711433]
[1767925025221,2.91810622,139.3,139.26,0.65531337]
[1767925025509,10.1091996,139.32,139.28,0.65531337]
[1767925025913,7.89208527,139.32,139.28,2.8724277]
[1767925026119,7.17788523,139.32,139.29,0.65531337]
[1767925026422,13.1,139.34,139.3,0.65531337]
[1767925026423,2.21711433,139.34,139.3,0.65531337]
[1767925026736,2.93131437,139.35,139.31,0.65531337]
[1767925027123,9.65887716,139.34,139.29,2.90118637]
[1767925027494,9.65887716,139.34,139.3,0.68407204]
[1767925027695,7.1767134,139.34,139.3,0.68407204]
[1767925027993,9.39382773,139.34,139.3,0.68407204]
[1767925030614,0.70460705,139.35,139.3,0.68407204]
[1767925030615,10.09803352,139.35,139.31,0.68407204]
[1767925030916,10.09803352,139.35,139.32,0.68407204]
[1767925030917,7.88091919,139.35,139.32,0.68407204]
[1767925031123,7.88091919,139.35,139.32,0.62407205]
[1767925031313,10.09803352,139.35,139.32,0.62407205]
[1767925034426,10.09803352,139.35,139.3,0.68407204]
[1767925034721,10.09803352,139.35,139.29,0.68407204]
[1767925034722,2.91801477,139.33,139.29,0.68407204]
[1767925035016,10.09557036,139.33,139.29,0.68407204]
[1767925035516,2.55473035,139.32,139.29,0.68407204]
[1767925036522,0.6972676,139.31,139.27,0.68407204]
[1767925036724,2.91438193,139.31,139.27,0.68407204]
[1767925037201,0.6972676,139.31,139.27,2.90118637]
[1767925037403,0.6972676,139.31,139.27,0.68407204]
[1767925039042,0.6972676,139.31,139.27,2.90118637]
[1767925039221,7.87551709,139.31,139.27,2.90118637]
[1767925039642,7.87551709,139.31,139.27,0.68407204]
[1767925039845,7.87551709,139.31,139.27,2.90118637]
[1767925040341,7.51183583,139.32,139.28,0.68407204]
[1767925042349,7.51183583,139.32,139.28,0.62407205]
[1767925044354,7.88314809,139.31,139.28,0.5640721]
[1767925044651,7.88314809,139.31,139.28,0.50407211]
[1767925047252,0.51214641,139.3,139.26,10.08198117]
[1767925047460,0.51214641,139.3,139.26,0.68407204]
[1767925047958,0.70268244,139.29,139.25,0.68407204]
[1767925048129,0.51405177,139.28,139.24,0.68407204]
[1767925048334,0.70079614,139.27,139.23,2.90118637]
[1767925049064,0.70079614,139.27,139.23,0.68407204]
[1767925049558,7.88113864,139.27,139.23,0.68407204]
[1767925050355,0.51591921,139.26,139.22,2.90118637]
[1767925050964,23.20166815,139.28,139.24,0.68407204]
[1767925051260,10.10110302,139.29,139.25,0.68407204]
[1767925051644,13.1,139.3,139.2,18.24375776]
[1767925051645,0.51405177,139.26,139.22,0.68407204]
[1767925051849,0.51405177,139.26,139.23,0.68407204]
[1767925055567,2.21711433,139.28,139.24,0.67156386]
[1767925055774,2.71681313,139.28,139.24,0.67156386]
[1767925057250,9.89683132,139.28,139.24,0.67156386]
[1767925057875,7.67971699,139.28,139.24,0.67156386]
[1767925058271,9.89683132,139.28,139.24,0.67156386]
[1767925058572,11.14879189,139.28,139.24,0.67156386]
[1767925059166,0.71500558,139.27,139.24,0.67156386]
[1767925062978,11.14921175,139.27,139.23,0.67156386]
[1767925063277,11.14921175,139.27,139.22,0.67156386]
[1767925063278,7.89594874,139.26,139.22,0.67156386]
[1767925063480,11.36502364,139.26,139.22,0.67156386]
[1767925064381,0.50185186,139.25,139.22,0.67156386]
[1767925064562,7.68326421,139.25,139.21,4.14063876]
[1767925064763,0.50185186,139.25,139.21,4.14063876]
[1767925065180,0.71287405,139.24,139.2,0.67156386]
[1767925065479,0.50396208,139.23,139.2,0.67156386]
[1767925067065,0.71078493,139.22,139.18,0.87156386]
[1767925068289,0.50603031,139.21,139.18,0.87156386]
[1767925068967,7.68942665,139.21,139.18,0.87156386]
[1767925069174,0.70873738,139.2,139.18,0.2]
[1767925069476,7.68266147,139.22,139.19,0.67156386]
[1767925070078,11.15173637,139.22,139.18,0.87156386]
[1767925070282,0.71500558,139.21,139.18,0.87156386]
[1767925071590,0.71718039,139.22,139.19,0.67156386]
[1767925072465,11.36928981,139.22,139.18,0.87156386]
[1767925073196,0.71500558,139.2,139.18,0.2]
[1767925073363,0.68500558,139.2,139.18,0.2]
[1767925073570,25.1336006,139.26,139.2,0.67156386]
[1767925073866,0.71718039,139.24,139.2,3.4690749]
[1767925074593,0.71718039,139.24,139.18,25.34716952]
[1767925074889,0.71718039,139.24,139.2,3.4690749]
[1767925075092,0.71718039,139.24,139.18,25.34716952]
[1767925075391,0.71718039,139.24,139.2,3.4690749]
[1767925075801,0.71718039,139.24,139.2,11.32435926]
[1767925076402,0.71718039,139.24,139.2,7.85528436]
[1767925077002,0.68718039,139.24,139.21,0.67156386]
[1767925078099,0.68718039,139.24,139.2,11.32435926]
[1767925078999,3.4690749,139.25,139.21,0.67156386]
[1767925079314,0.71718039,139.26,139.22,0.67156386]
[1767925080005,0.71718039,139.24,139.2,10.65285467]
[1767925080508,0.71718039,139.24,139.19,18.63182528]
[1767925080509,0.71718039,139.22,139.19,7.18426]
[1767925080711,0.68718038,139.22,139.18,10.85388731]
[1767925081083,0.68718038,139.22,139.18,8.05637627]
[1767925081301,0.68718038,139.22,139.18,11.52545117]
[1767925081593,0.68718038,139.22,139.19,7.18437144]
[1767925082079,0.68718038,139.22,139.18,8.05635175]
[1767925082277,0.68718038,139.22,139.18,11.52542665]